[Event "Early-Titled-Tuesday-Blitz-February-13-2024"]
[Site "Chess.com"]
[Date "2024.02.13"]
[Round "4"]
[White "VladimirKramnik"]
[Black "CSB7"]
[Result "1/2-1/2"]
[WhiteElo "2930"]
[BlackElo "2756"]
[TimeControl "180+1"]
[EndTime "8:44:03 PST"]
[Termination "Game drawn by repetition"]

1. e4 {[%clk 0:03:00.9]} 1... c6 {[%clk 0:02:59.5]} 2. d4 {[%clk 0:02:59.1]}
2... d5 {[%clk 0:03:00.1]} 3. e5 {[%clk 0:02:58.7]} 3... Bf5 {[%clk 0:02:59.3]}
4. h4 {[%clk 0:02:58.2]} 4... h5 {[%clk 0:02:59]} 5. Bd3 {[%clk 0:02:58.7]} 5...
Bxd3 {[%clk 0:02:59.3]} 6. Qxd3 {[%clk 0:02:59.2]} 6... Qa5+ {[%clk 0:02:59.9]}
7. c3 {[%clk 0:02:56.2]} 7... e6 {[%clk 0:02:59.1]} 8. b4 {[%clk 0:02:54.7]}
8... Qb5 {[%clk 0:02:41.1]} 9. Qxb5 {[%clk 0:02:51.6]} 9... cxb5 {[%clk
0:02:42]} 10. a4 {[%clk 0:02:50.4]} 10... bxa4 {[%clk 0:02:40]} 11. Rxa4 {[%clk
0:02:48.5]} 11... Ne7 {[%clk 0:02:34.4]} 12. Bg5 {[%clk 0:02:33]} 12... Nc8
{[%clk 0:02:30.6]} 13. Nd2 {[%clk 0:02:24.7]} 13... Nb6 {[%clk 0:02:23.5]} 14.
Ra2 {[%clk 0:02:23.2]} 14... N8d7 {[%clk 0:02:15.7]} 15. Ngf3 {[%clk 0:02:22.8]}
15... a6 {[%clk 0:02:02.1]} 16. Ke2 {[%clk 0:02:19.8]} 16... f6 {[%clk
0:01:50.7]} 17. Bf4 {[%clk 0:02:16.4]} 17... Rc8 {[%clk 0:01:50.5]} 18. Kd3
{[%clk 0:02:15.4]} 18... Kf7 {[%clk 0:01:37.9]} 19. Rb1 {[%clk 0:02:09.2]} 19...
Be7 {[%clk 0:01:34.3]} 20. b5 {[%clk 0:02:04.2]} 20... axb5 {[%clk 0:01:35.2]}
21. Rxb5 {[%clk 0:02:02.9]} 21... Rc6 {[%clk 0:01:35.9]} 22. g3 {[%clk
0:01:42.8]} 22... Rhc8 {[%clk 0:01:33.7]} 23. Rb3 {[%clk 0:01:39.9]} 23... fxe5
{[%clk 0:00:45.5]} 24. Bxe5 {[%clk 0:01:31.8]} 24... Nc4 {[%clk 0:00:40.1]} 25.
Bf4 {[%clk 0:01:04.6]} 25... b6 {[%clk 0:00:29.6]} 26. Ra7 {[%clk 0:01:02.5]}
26... Nf6 {[%clk 0:00:29.3]} 27. Ke2 {[%clk 0:00:56.7]} 27... Nxd2 {[%clk
0:00:24.3]} 28. Ne5+ {[%clk 0:00:51.1]} 28... Ke8 {[%clk 0:00:13.1]} 29. Bxd2
{[%clk 0:00:34.8]} 29... Rd6 {[%clk 0:00:04.5]} 30. f3 {[%clk 0:00:34.7]} 30...
Nd7 {[%clk 0:00:04.4]} 31. Nxd7 {[%clk 0:00:30.1]} 31... Rxd7 {[%clk 0:00:05.3]}
32. Rxd7 {[%clk 0:00:29.7]} 32... Kxd7 {[%clk 0:00:06.2]} 33. Rxb6 {[%clk
0:00:29.3]} 33... g6 {[%clk 0:00:05.4]} 34. Kd3 {[%clk 0:00:21.4]} 34... Bd6
{[%clk 0:00:05.9]} 35. Bf4 {[%clk 0:00:17.6]} 35... Bxf4 {[%clk 0:00:05.3]} 36.
gxf4 {[%clk 0:00:18.2]} 36... Rf8 {[%clk 0:00:05.9]} 37. Rb7+ {[%clk 0:00:16.9]}
37... Kd6 {[%clk 0:00:05.9]} 38. Ke3 {[%clk 0:00:13.9]} 38... Rc8 {[%clk
0:00:06.3]} 39. Rb3 {[%clk 0:00:13.6]} 39... Rc7 {[%clk 0:00:06.8]} 40. Ra3
{[%clk 0:00:13.5]} 40... Ke7 {[%clk 0:00:07.1]} 41. Rb3 {[%clk 0:00:09.5]} 41...
Kf6 {[%clk 0:00:07.7]} 42. Ra3 {[%clk 0:00:07.8]} 42... Rc8 {[%clk 0:00:07]} 43.
Kd3 {[%clk 0:00:06.5]} 43... Kf5 {[%clk 0:00:06.7]} 44. Ra6 {[%clk 0:00:07.1]}
44... Rc7 {[%clk 0:00:05]} 45. Rb6 {[%clk 0:00:07]} 45... Rc8 {[%clk 0:00:04.7]}
46. Rd6 {[%clk 0:00:06.5]} 46... Rc7 {[%clk 0:00:04.7]} 47. Rd8 {[%clk
0:00:05.6]} 47... Kf6 {[%clk 0:00:03.3]} 48. Rf8+ {[%clk 0:00:04.5]} 48... Kg7
{[%clk 0:00:03.3]} 49. Re8 {[%clk 0:00:04.9]} 49... Kf7 {[%clk 0:00:03.5]} 50.
Rd8 {[%clk 0:00:05.2]} 50... Kf6 {[%clk 0:00:04.1]} 51. Rf8+ {[%clk 0:00:04.7]}
51... Ke7 {[%clk 0:00:03.9]} 52. Ra8 {[%clk 0:00:05.2]} 52... Kf6 {[%clk
0:00:04.3]} 53. Rb8 {[%clk 0:00:03.9]} 53... Kf7 {[%clk 0:00:04.1]} 54. Rb4
{[%clk 0:00:03.1]} 54... Kf6 {[%clk 0:00:04.6]} 55. Rb5 {[%clk 0:00:03.2]} 55...
Kf5 {[%clk 0:00:03.5]} 56. Rb8 {[%clk 0:00:03.8]} 56... Kf6 {[%clk 0:00:04]} 57.
Rg8 {[%clk 0:00:03.6]} 57... Kf7 {[%clk 0:00:04]} 58. Rh8 {[%clk 0:00:03.8]}
58... Kg7 {[%clk 0:00:03.9]} 59. Rd8 {[%clk 0:00:04.4]} 59... Kf6 {[%clk
0:00:04.1]} 1/2-1/2

[Event "Early-Titled-Tuesday-Blitz-February-13-2024"]
[Site "Chess.com"]
[Date "2024.02.13"]
[Round "4"]
[White "JoliyRoger"]
[Black "AlexTruskavetsky"]
[Result "1-0"]
[WhiteElo "2534"]
[BlackElo "2718"]
[TimeControl "180+1"]
[EndTime "8:44:07 PST"]
[Termination "JoliyRoger won by checkmate"]

1. d4 {[%clk 0:03:00.9]} 1... Nf6 {[%clk 0:02:59.7]} 2. c4 {[%clk 0:02:58]} 2...
e6 {[%clk 0:02:59.6]} 3. Nc3 {[%clk 0:02:58.5]} 3... d5 {[%clk 0:02:59.8]} 4. a3
{[%clk 0:02:59.2]} 4... c6 {[%clk 0:02:54]} 5. e3 {[%clk 0:02:57.1]} 5... Bd6
{[%clk 0:02:53.8]} 6. Nf3 {[%clk 0:02:57.2]} 6... O-O {[%clk 0:02:54]} 7. Qc2
{[%clk 0:02:56.4]} 7... Nbd7 {[%clk 0:02:53.8]} 8. Bd3 {[%clk 0:02:50.9]} 8...
Qe7 {[%clk 0:02:53]} 9. O-O {[%clk 0:02:48.6]} 9... e5 {[%clk 0:02:52.7]} 10.
cxd5 {[%clk 0:02:48.9]} 10... cxd5 {[%clk 0:02:52.4]} 11. dxe5 {[%clk
0:02:48.6]} 11... Nxe5 {[%clk 0:02:53.3]} 12. Be2 {[%clk 0:02:40.4]} 12... Bg4
{[%clk 0:02:44.8]} 13. Nd4 {[%clk 0:02:21.8]} 13... Bxe2 {[%clk 0:02:43.9]} 14.
Ncxe2 {[%clk 0:02:20.7]} 14... Rac8 {[%clk 0:02:43.2]} 15. Qd1 {[%clk
0:02:13.6]} 15... Qd7 {[%clk 0:02:41.4]} 16. Ng3 {[%clk 0:02:12.5]} 16... g6
{[%clk 0:02:41.3]} 17. Bd2 {[%clk 0:02:11]} 17... h5 {[%clk 0:02:37.2]} 18. Nf3
{[%clk 0:01:52.6]} 18... Nxf3+ {[%clk 0:02:13.2]} 19. Qxf3 {[%clk 0:01:49]}
19... Be5 {[%clk 0:02:13.5]} 20. Rab1 {[%clk 0:01:36.5]} 20... h4 {[%clk
0:02:12.2]} 21. Ne2 {[%clk 0:01:32.3]} 21... Ng4 {[%clk 0:02:11.6]} 22. g3
{[%clk 0:01:03.5]} 22... hxg3 {[%clk 0:02:11]} 23. hxg3 {[%clk 0:01:03]} 23...
Rc6 {[%clk 0:02:06.9]} 24. Bc3 {[%clk 0:00:55]} 24... Kg7 {[%clk 0:02:01.3]} 25.
Rbd1 {[%clk 0:00:49.5]} 25... Rd8 {[%clk 0:01:22.5]} 26. Bxe5+ {[%clk
0:00:41.9]} 26... Nxe5 {[%clk 0:01:22.5]} 27. Qf4 {[%clk 0:00:42.5]} 27... Qe7
{[%clk 0:01:20.5]} 28. Qd4 {[%clk 0:00:32.1]} 28... Rf6 {[%clk 0:01:19.5]} 29.
Kg2 {[%clk 0:00:27.9]} 29... Nf3 {[%clk 0:01:17.2]} 30. Qc3 {[%clk 0:00:27.7]}
30... Qe4 {[%clk 0:01:16.4]} 31. Qb4 {[%clk 0:00:21.8]} 31... Nd4+ {[%clk
0:01:16.7]} 32. f3 {[%clk 0:00:20]} 32... Nc6 {[%clk 0:00:54.5]} 33. fxe4 {[%clk
0:00:16.3]} 33... Nxb4 {[%clk 0:00:55.1]} 34. Rxf6 {[%clk 0:00:14.4]} 34... Kxf6
{[%clk 0:00:54]} 35. axb4 {[%clk 0:00:15]} 35... Rc8 {[%clk 0:00:54.6]} 36. Nc3
{[%clk 0:00:15.4]} 36... dxe4 {[%clk 0:00:54.5]} 37. Nxe4+ {[%clk 0:00:16.1]}
37... Ke5 {[%clk 0:00:55.1]} 38. Nc3 {[%clk 0:00:15.7]} 38... Ke6 {[%clk
0:00:55.7]} 39. Rd4 {[%clk 0:00:15.6]} 39... Rh8 {[%clk 0:00:54.3]} 40. b5
{[%clk 0:00:15]} 40... Rc8 {[%clk 0:00:54.4]} 41. g4 {[%clk 0:00:15.3]} 41...
Rc5 {[%clk 0:00:54.5]} 42. Re4+ {[%clk 0:00:15.3]} 42... Kf6 {[%clk 0:00:54.4]}
43. Rf4+ {[%clk 0:00:15.8]} 43... Ke6 {[%clk 0:00:54.6]} 44. Kf3 {[%clk
0:00:15.6]} 44... Rc8 {[%clk 0:00:52.3]} 45. Re4+ {[%clk 0:00:15.8]} 45... Kd6
{[%clk 0:00:51.9]} 46. g5 {[%clk 0:00:13.7]} 46... Rh8 {[%clk 0:00:51]} 47. Rf4
{[%clk 0:00:14.1]} 47... Ke6 {[%clk 0:00:50.8]} 48. Rf6+ {[%clk 0:00:13.3]}
48... Ke7 {[%clk 0:00:50.5]} 49. Ne4 {[%clk 0:00:13.8]} 49... Rh3+ {[%clk
0:00:47.5]} 50. Kf4 {[%clk 0:00:12.9]} 50... Rh4+ {[%clk 0:00:47.7]} 51. Ke5
{[%clk 0:00:12]} 51... Rg4 {[%clk 0:00:47.6]} 52. Rf4 {[%clk 0:00:11.2]} 52...
Rg2 {[%clk 0:00:46.6]} 53. b3 {[%clk 0:00:11]} 53... b6 {[%clk 0:00:46.2]} 54.
Nd6 {[%clk 0:00:09.9]} 54... Rxg5+ {[%clk 0:00:46.2]} 55. Nf5+ {[%clk
0:00:07.4]} 55... gxf5 {[%clk 0:00:45.7]} 56. Rxf5 {[%clk 0:00:08.1]} 56... Rg2
{[%clk 0:00:44.9]} 57. Kd4 {[%clk 0:00:08.6]} 57... Rd2+ {[%clk 0:00:44.4]} 58.
Kc4 {[%clk 0:00:08.5]} 58... Rd6 {[%clk 0:00:43.8]} 59. Rd5 {[%clk 0:00:05.2]}
59... Ke6 {[%clk 0:00:40.2]} 60. Rh5 {[%clk 0:00:02.4]} 60... Rd1 {[%clk
0:00:38.9]} 61. Rh6+ {[%clk 0:00:02.5]} 61... f6 {[%clk 0:00:39.3]} 62. Rh7
{[%clk 0:00:02.5]} 62... Rd7 {[%clk 0:00:39.8]} 63. Rxd7 {[%clk 0:00:01.8]}
63... Kxd7 {[%clk 0:00:40.5]} 64. Kd5 {[%clk 0:00:02.5]} 64... a5 {[%clk
0:00:38.9]} 65. bxa6 {[%clk 0:00:02.2]} 65... Kc7 {[%clk 0:00:39.5]} 66. b4
{[%clk 0:00:02.4]} 66... b5 {[%clk 0:00:40]} 67. Kc5 {[%clk 0:00:03.1]} 67... f5
{[%clk 0:00:40.5]} 68. Kxb5 {[%clk 0:00:03.5]} 68... f4 {[%clk 0:00:40.6]} 69.
exf4 {[%clk 0:00:03.9]} 69... Kb8 {[%clk 0:00:40.7]} 70. f5 {[%clk 0:00:04.8]}
70... Kc8 {[%clk 0:00:41.6]} 71. f6 {[%clk 0:00:05.1]} 71... Kb8 {[%clk
0:00:42.2]} 72. f7 {[%clk 0:00:05.2]} 72... Ka7 {[%clk 0:00:43.1]} 73. Kc5
{[%clk 0:00:04.7]} 73... Kxa6 {[%clk 0:00:43.6]} 74. f8=Q {[%clk 0:00:04.8]}
74... Ka7 {[%clk 0:00:44.5]} 75. Qe7+ {[%clk 0:00:05.3]} 75... Ka6 {[%clk
0:00:45.4]} 76. Qe6+ {[%clk 0:00:04.3]} 76... Ka7 {[%clk 0:00:45.7]} 77. Kc6
{[%clk 0:00:04.7]} 77... Ka8 {[%clk 0:00:46.6]} 78. Qc8+ {[%clk 0:00:05]} 78...
Ka7 {[%clk 0:00:47.5]} 79. Qb7# {[%clk 0:00:05.9]} 1-0

[Event "Early-Titled-Tuesday-Blitz-February-13-2024"]
[Site "Chess.com"]
[Date "2024.02.13"]
[Round "4"]
[White "SkinnyPuppy8"]
[Black "HajiyevKanan"]
[Result "0-1"]
[WhiteElo "2241"]
[BlackElo "2503"]
[TimeControl "180+1"]
[EndTime "8:44:08 PST"]
[Termination "HajiyevKanan won by checkmate"]

1. e4 {[%clk 0:02:59.3]} 1... c6 {[%clk 0:02:42.9]} 2. Nc3 {[%clk 0:02:55.7]}
2... d5 {[%clk 0:02:43.8]} 3. Nf3 {[%clk 0:02:56]} 3... a6 {[%clk 0:02:40.3]} 4.
h3 {[%clk 0:02:53.1]} 4... Nf6 {[%clk 0:02:30.8]} 5. d3 {[%clk 0:02:51.3]} 5...
dxe4 {[%clk 0:02:30.8]} 6. Nxe4 {[%clk 0:02:51.2]} 6... Nxe4 {[%clk 0:02:31.2]}
7. dxe4 {[%clk 0:02:52.1]} 7... Qxd1+ {[%clk 0:02:31.8]} 8. Kxd1 {[%clk
0:02:53]} 8... g6 {[%clk 0:02:30.5]} 9. Be3 {[%clk 0:02:51.9]} 9... Bg7 {[%clk
0:02:31.1]} 10. Bd4 {[%clk 0:02:51.6]} 10... Bxd4 {[%clk 0:02:30]} 11. Nxd4
{[%clk 0:02:51.7]} 11... c5 {[%clk 0:02:29.4]} 12. Ne2 {[%clk 0:02:44.5]} 12...
Nc6 {[%clk 0:02:27.7]} 13. c3 {[%clk 0:02:44.3]} 13... Be6 {[%clk 0:02:27.7]}
14. Kc2 {[%clk 0:02:43.8]} 14... O-O-O {[%clk 0:02:27.9]} 15. Nf4 {[%clk
0:02:43.2]} 15... Rd6 {[%clk 0:02:21.6]} 16. Be2 {[%clk 0:02:31.9]} 16... Bd7
{[%clk 0:01:51.8]} 17. Nd5 {[%clk 0:02:17.4]} 17... Be6 {[%clk 0:01:42.8]} 18.
Nf4 {[%clk 0:02:15.1]} 18... Kc7 {[%clk 0:01:38.4]} 19. Rhd1 {[%clk 0:02:13.2]}
19... Rhd8 {[%clk 0:01:37.2]} 20. b3 {[%clk 0:01:48.9]} 20... g5 {[%clk
0:01:33.9]} 21. Nd3 {[%clk 0:01:17.8]} 21... c4 {[%clk 0:01:29]} 22. Nc5 {[%clk
0:01:08.3]} 22... cxb3+ {[%clk 0:01:26.9]} 23. axb3 {[%clk 0:01:07.2]} 23... Bc8
{[%clk 0:01:22.4]} 24. c4 {[%clk 0:00:46.5]} 24... Nd4+ {[%clk 0:01:10.5]} 25.
Rxd4 {[%clk 0:00:46.9]} 25... Rxd4 {[%clk 0:01:09.5]} 26. Nd3 {[%clk 0:00:38.6]}
26... Rxe4 {[%clk 0:01:07]} 27. Bf3 {[%clk 0:00:38.9]} 27... Red4 {[%clk
0:01:03]} 28. Nb4 {[%clk 0:00:33.5]} 28... Bf5+ {[%clk 0:00:56.2]} 29. Kc3
{[%clk 0:00:32.5]} 29... e6 {[%clk 0:00:56.8]} 30. Nd5+ {[%clk 0:00:30.3]} 30...
R4xd5 {[%clk 0:00:42.2]} 31. cxd5 {[%clk 0:00:29.8]} 31... exd5 {[%clk
0:00:42.4]} 32. Kd4 {[%clk 0:00:28.5]} 32... Kd6 {[%clk 0:00:36.5]} 33. Ra5
{[%clk 0:00:25.4]} 33... Be6 {[%clk 0:00:36.3]} 34. b4 {[%clk 0:00:18.2]} 34...
Kc6 {[%clk 0:00:28.9]} 35. Rc5+ {[%clk 0:00:15.1]} 35... Kb6 {[%clk 0:00:29.2]}
36. Be2 {[%clk 0:00:10.4]} 36... Rd6 {[%clk 0:00:20.9]} 37. Rc1 {[%clk
0:00:06.4]} 37... Rc6 {[%clk 0:00:20.3]} 38. Rc5 {[%clk 0:00:06]} 38... Rxc5
{[%clk 0:00:19.3]} 39. bxc5+ {[%clk 0:00:06.9]} 39... Kc6 {[%clk 0:00:20]} 40.
Bd1 {[%clk 0:00:06.7]} 40... f6 {[%clk 0:00:18]} 41. Ba4+ {[%clk 0:00:07.1]}
41... b5 {[%clk 0:00:16.5]} 42. cxb6+ {[%clk 0:00:06.7]} 42... Kxb6 {[%clk
0:00:17.4]} 43. Bc2 {[%clk 0:00:07.3]} 43... a5 {[%clk 0:00:16.4]} 44. Bxh7
{[%clk 0:00:07.2]} 44... Kb5 {[%clk 0:00:16.2]} 45. Bd3+ {[%clk 0:00:07]} 45...
Kb4 {[%clk 0:00:16.9]} 46. Bc2 {[%clk 0:00:07.2]} 46... a4 {[%clk 0:00:16.6]}
47. Bb1 {[%clk 0:00:06.5]} 47... Kb3 {[%clk 0:00:16.2]} 48. Kc5 {[%clk
0:00:05.5]} 48... a3 {[%clk 0:00:16.4]} 49. Kd4 {[%clk 0:00:04.6]} 49... Bf5
{[%clk 0:00:13.5]} 50. Bxf5 {[%clk 0:00:03.8]} 50... a2 {[%clk 0:00:14]} 51.
Kxd5 {[%clk 0:00:04.7]} 51... a1=Q {[%clk 0:00:14.2]} 52. Ke6 {[%clk 0:00:05.6]}
52... Qe5+ {[%clk 0:00:14.3]} 53. Kf7 {[%clk 0:00:06.5]} 53... Qxf5 {[%clk
0:00:15.1]} 54. f3 {[%clk 0:00:06.7]} 54... Qf4 {[%clk 0:00:15.3]} 55. Kg6
{[%clk 0:00:06.3]} 55... Kc3 {[%clk 0:00:13.9]} 56. g3 {[%clk 0:00:06]} 56...
Qxf3 {[%clk 0:00:13.5]} 57. h4 {[%clk 0:00:06.2]} 57... gxh4 {[%clk 0:00:11.4]}
58. gxh4 {[%clk 0:00:06.4]} 58... Qg4+ {[%clk 0:00:08.9]} 59. Kxf6 {[%clk
0:00:05.2]} 59... Qxh4+ {[%clk 0:00:09.4]} 60. Ke5 {[%clk 0:00:05.9]} 60... Qd4+
{[%clk 0:00:09.4]} 61. Kf5 {[%clk 0:00:05.6]} 61... Kd3 {[%clk 0:00:10.3]} 62.
Ke6 {[%clk 0:00:06.1]} 62... Ke4 {[%clk 0:00:10.3]} 63. Kf7 {[%clk 0:00:06.6]}
63... Qd6 {[%clk 0:00:10]} 64. Kg7 {[%clk 0:00:06.8]} 64... Kf5 {[%clk
0:00:10.9]} 65. Kf7 {[%clk 0:00:07.5]} 65... Qd7+ {[%clk 0:00:10.1]} 66. Kg8
{[%clk 0:00:07.9]} 66... Kf6 {[%clk 0:00:08.5]} 67. Kh8 {[%clk 0:00:08.8]} 67...
Qg7# {[%clk 0:00:08.5]} 0-1

[Event "Early-Titled-Tuesday-Blitz-February-13-2024"]
[Site "Chess.com"]
[Date "2024.02.13"]
[Round "4"]
[White "guillembaches"]
[Black "leschebaza"]
[Result "1-0"]
[WhiteElo "2569"]
[BlackElo "2394"]
[TimeControl "180+1"]
[EndTime "8:44:09 PST"]
[Termination "guillembaches won by resignation"]

1. d4 {[%clk 0:03:00.9]} 1... Nf6 {[%clk 0:02:59.4]} 2. Nf3 {[%clk 0:03:01.5]}
2... d5 {[%clk 0:02:58.4]} 3. Bg5 {[%clk 0:03:02.1]} 3... Nbd7 {[%clk 0:02:57]}
4. Nbd2 {[%clk 0:03:01.7]} 4... e6 {[%clk 0:02:55.6]} 5. e3 {[%clk 0:03:01.8]}
5... Bd6 {[%clk 0:02:53]} 6. Bd3 {[%clk 0:03:01.5]} 6... c5 {[%clk 0:02:53.4]}
7. c3 {[%clk 0:03:01.6]} 7... O-O {[%clk 0:02:52.8]} 8. O-O {[%clk 0:03:01.2]}
8... h6 {[%clk 0:02:52.9]} 9. Bh4 {[%clk 0:03:00.2]} 9... Qc7 {[%clk 0:02:49.9]}
10. Qe2 {[%clk 0:02:51.1]} 10... e5 {[%clk 0:02:34.7]} 11. dxe5 {[%clk
0:02:48.7]} 11... Bxe5 {[%clk 0:02:35.6]} 12. Nxe5 {[%clk 0:02:45.1]} 12... Qxe5
{[%clk 0:02:36.5]} 13. Bg3 {[%clk 0:02:41.8]} 13... Qe7 {[%clk 0:02:31.7]} 14.
Rad1 {[%clk 0:02:38.4]} 14... Re8 {[%clk 0:02:31.2]} 15. Bb1 {[%clk 0:02:27.8]}
15... Ne5 {[%clk 0:02:25.5]} 16. c4 {[%clk 0:02:10.8]} 16... Bg4 {[%clk
0:01:52]} 17. f3 {[%clk 0:02:07]} 17... Bh5 {[%clk 0:01:50.9]} 18. cxd5 {[%clk
0:01:59]} 18... Nxd5 {[%clk 0:01:46.9]} 19. Ne4 {[%clk 0:01:35.9]} 19... Rad8
{[%clk 0:01:36]} 20. Rfe1 {[%clk 0:01:28.7]} 20... b6 {[%clk 0:01:34.5]} 21. a3
{[%clk 0:01:24]} 21... Qb7 {[%clk 0:00:58.1]} 22. Qc2 {[%clk 0:01:17.2]} 22...
Bg6 {[%clk 0:00:57]} 23. Qf2 {[%clk 0:01:08]} 23... c4 {[%clk 0:00:44.7]} 24.
Rd4 {[%clk 0:01:02.6]} 24... Nd3 {[%clk 0:00:44.3]} 25. Bxd3 {[%clk 0:00:56.9]}
25... cxd3 {[%clk 0:00:45.2]} 26. Rxd3 {[%clk 0:00:55.9]} 26... Bxe4 {[%clk
0:00:44.3]} 27. fxe4 {[%clk 0:00:56.4]} 27... Rxe4 {[%clk 0:00:45.2]} 28. Red1
{[%clk 0:00:55.2]} 28... Re7 {[%clk 0:00:34]} 29. Qd2 {[%clk 0:00:45.1]} 29...
Red7 {[%clk 0:00:33.8]} 30. Be5 {[%clk 0:00:31.1]} 30... Nf6 {[%clk 0:00:29.6]}
31. Rxd7 {[%clk 0:00:26.3]} 31... Rxd7 {[%clk 0:00:30.5]} 32. Qc2 {[%clk
0:00:24.8]} 32... Rxd1+ {[%clk 0:00:25.7]} 33. Qxd1 {[%clk 0:00:25.2]} 33... Qe7
{[%clk 0:00:26.2]} 34. Qd4 {[%clk 0:00:23.2]} 34... Ne8 {[%clk 0:00:17.2]} 35.
Bf4 {[%clk 0:00:19.7]} 35... Kh7 {[%clk 0:00:14.3]} 36. Qd3+ {[%clk 0:00:19.2]}
36... g6 {[%clk 0:00:14.2]} 37. Qd4 {[%clk 0:00:19.2]} 37... Ng7 {[%clk
0:00:14.1]} 38. Qc3 {[%clk 0:00:16.6]} 38... Ne6 {[%clk 0:00:13.3]} 39. Be5
{[%clk 0:00:16.5]} 39... Qh4 {[%clk 0:00:11.6]} 40. g3 {[%clk 0:00:15.3]} 40...
Qe4 {[%clk 0:00:11.5]} 41. Bf6 {[%clk 0:00:13]} 41... h5 {[%clk 0:00:11.7]} 42.
h4 {[%clk 0:00:12.2]} 42... Qf3 {[%clk 0:00:11.3]} 43. Be5 {[%clk 0:00:10.8]}
43... Qd1+ {[%clk 0:00:10.9]} 44. Kg2 {[%clk 0:00:10.3]} 44... Qd5+ {[%clk
0:00:11.1]} 45. Kg1 {[%clk 0:00:10.4]} 45... Nc5 {[%clk 0:00:11.6]} 46. Qd4
{[%clk 0:00:09.4]} 46... Qxd4 {[%clk 0:00:11.4]} 47. Bxd4 {[%clk 0:00:09.6]}
47... Ne6 {[%clk 0:00:09.8]} 48. Be5 {[%clk 0:00:09.4]} 48... Kg8 {[%clk
0:00:10.2]} 49. Kg2 {[%clk 0:00:09.9]} 49... Kf8 {[%clk 0:00:10.9]} 50. Kf3
{[%clk 0:00:10.4]} 50... Ke7 {[%clk 0:00:11.5]} 51. Ke4 {[%clk 0:00:10.9]} 51...
Nc5+ {[%clk 0:00:07.2]} 52. Kd5 {[%clk 0:00:11.1]} 52... Kd7 {[%clk 0:00:07.4]}
53. Bd4 {[%clk 0:00:10.9]} 53... Nd3 {[%clk 0:00:06.6]} 54. e4 {[%clk
0:00:09.8]} 54... Ne1 {[%clk 0:00:05.4]} 55. Be5 {[%clk 0:00:08.7]} 55... Nf3
{[%clk 0:00:04.3]} 56. Bf4 {[%clk 0:00:08.1]} 56... Nh2 {[%clk 0:00:01.7]} 57.
b4 {[%clk 0:00:08]} 57... Ng4 {[%clk 0:00:02.1]} 58. a4 {[%clk 0:00:08.2]} 58...
Nf6+ {[%clk 0:00:02.3]} 59. Kd4 {[%clk 0:00:08.6]} 59... Ne8 {[%clk 0:00:02.9]}
60. a5 {[%clk 0:00:08.7]} 60... bxa5 {[%clk 0:00:03.1]} 61. bxa5 {[%clk
0:00:09.2]} 61... a6 {[%clk 0:00:04]} 62. Kd5 {[%clk 0:00:09.1]} 62... Nc7+
{[%clk 0:00:03.1]} 63. Bxc7 {[%clk 0:00:09.1]} 63... Kxc7 {[%clk 0:00:04]} 64.
Ke5 {[%clk 0:00:09.6]} 64... Kc6 {[%clk 0:00:04]} 65. Kf6 {[%clk 0:00:10]} 65...
Kb5 {[%clk 0:00:04.7]} 66. Kxf7 {[%clk 0:00:10.4]} 66... Kxa5 {[%clk 0:00:05.4]}
67. e5 {[%clk 0:00:10.9]} 67... Kb6 {[%clk 0:00:05.9]} 68. e6 {[%clk 0:00:11.4]}
68... a5 {[%clk 0:00:06.7]} 69. e7 {[%clk 0:00:12.1]} 69... a4 {[%clk
0:00:07.6]} 70. e8=Q {[%clk 0:00:12.6]} 70... a3 {[%clk 0:00:08.5]} 71. Qe1
{[%clk 0:00:13]} 71... a2 {[%clk 0:00:09.4]} 72. Qa1 {[%clk 0:00:13.6]} 72...
Kc5 {[%clk 0:00:09.4]} 73. Kxg6 {[%clk 0:00:14.2]} 1-0